bitfinex/quotes_ETHUSD_20240811
["timestamp","ask_amount","ask_price","bid_price","bid_amount"]
[1723375266711,2.8645,2667.2,2666.0,2.2564]
[1723375266918,3.0,2667.1,2666.0,2.2564]
[1723375267275,3.0,2667.1,2666.1,0.08098125]
[1723375267515,0.62036605,2667.0,2666.1,0.08098125]
[1723375268526,2.8645,2666.9,2666.1,0.08098125]
[1723375268680,3.0,2666.8,2666.1,0.08098125]
[1723375268880,3.0,2666.8,2665.7,2.2564]
[1723375269081,3.0,2666.8,2666.2,0.08119031]
[1723375269383,0.58645,2666.7,2666.3,0.08115719]
[1723375269604,0.58645,2666.7,2665.7,2.2564]
[1723375270512,0.58645,2666.7,2664.9,0.86742172]
[1723375270513,0.58645,2666.7,2665.0,2.2564]
[1723375270711,2.3145,2666.4,2665.0,2.2564]
[1723375270902,5.3145,2666.4,2665.1,0.08158056]
[1723375271098,6.57595,2666.4,2665.1,0.40212079]
[1723375273103,0.55,2666.3,2665.1,0.08158056]
[1723375273411,2.3145,2666.2,2665.1,0.08158056]
[1723375273582,0.55,2666.1,2665.0,2.2564]
[1723375273780,0.58645,2666.0,2665.0,2.2564]
[1723375274392,2.3145,2665.8,2663.7,2.2564]
[1723375274596,5.3145,2665.8,2663.7,2.2564]
[1723375274801,2.3145,2665.8,2663.9,2.2564]
[1723375274994,0.53145,2665.7,2664.1,2.2564]
[1723375275321,0.53145,2665.7,2664.0,0.23384118]
[1723375275322,3.53145,2665.7,2664.3,2.2564]
[1723375275548,3.53145,2665.7,2664.2,0.15693086]
[1723375275549,3.0,2665.7,2664.5,2.2564]
[1723375275828,2.3145,2665.8,2664.6,0.15703965]
[1723375275984,2.3145,2665.8,2664.7,2.2564]
[1723375276193,2.84595,2665.8,2664.8,0.30068364]
[1723375276424,2.84595,2665.8,2664.8,0.22564]
[1723375276598,3.0,2665.7,2664.8,0.22564]
[1723375276800,3.0,2665.7,2664.9,0.08188926]
[1723375277005,2.3145,2665.8,2664.9,0.08188926]
[1723375277206,2.3145,2665.8,2664.8,0.22564]
[1723375277538,2.3145,2665.8,2664.7,2.2564]
[1723375278042,0.55,2665.7,2664.7,2.2564]
[1723375278220,0.55,2665.7,2664.8,0.08190772]
[1723375278427,0.55,2665.7,2664.7,2.2564]
[1723375278428,3.55,2665.7,2664.7,2.2564]
[1723375278735,0.58645,2665.6,2664.7,2.2564]
[1723375280243,3.0,2665.9,2664.7,2.2564]
[1723375280401,2.3145,2666.0,2664.7,2.2564]
[1723375280910,3.19103789,2666.3,2664.7,2.2564]
[1723375280911,2.3145,2665.8,2664.7,2.2564]
[1723375281249,0.55,2665.7,2663.9,2.2564]
[1723375281537,0.55,2665.7,2664.8,0.08220519]
[1723375281538,7.3,2665.3,2664.8,0.08220519]
[1723375281742,19.49,2665.6,2664.1,2.2564]
[1723375281904,1.852645,2665.5,2664.2,0.30494617]
[1723375282106,4.852645,2665.5,2664.2,0.38735038]
[1723375282438,4.852645,2665.5,2664.2,0.30494617]
[1723375282928,4.302645,2665.5,2664.3,2.2564]
[1723375283133,4.302645,2665.5,2664.4,0.25613462]
[1723375283340,0.55,2665.4,2664.4,0.33847248]
[1723375284124,0.55,2665.4,2664.4,0.08233786]
[1723375284329,2.3145,2665.3,2664.4,0.08233786]
[1723375284537,2.3145,2665.3,2664.3,2.2564]
[1723375284733,12.6145,2665.3,2664.3,2.2564]
[1723375284907,0.55,2665.2,2663.5,2.2564]
[1723375285260,7.3,2664.9,2663.6,2.2564]
[1723375285550,3.0,2664.8,2663.6,2.33918701]
[1723375285756,3.73,2664.8,2663.7,0.2339187]
[1723375285901,3.73,2664.8,2663.7,2.47167487]
[1723375286105,3.73,2664.8,2663.8,0.15779549]
[1723375286303,3.0,2664.8,2663.9,2.3966]
[1723375286541,3.0,2664.8,2664.1,2.3966]
[1723375286748,3.0,2664.8,2664.2,0.24716618]
[1723375286912,3.0,2664.8,2664.1,2.3966]
[1723375287112,3.0,2664.8,2664.3,0.08255473]
[1723375287383,3.0,2664.8,2664.1,2.3966]
[1723375287645,3.0,2664.8,2664.2,0.0825879]
[1723375288321,7.3,2664.9,2664.3,2.3966]
[1723375288547,7.3,2664.9,2664.4,0.33048481]
[1723375288734,0.38967995,2665.9,2664.5,2.3966]
[1723375288735,7.3,2665.4,2664.5,2.3966]
[1723375289133,7.3,2665.4,2664.6,0.08245522]
[1723375290211,3.0,2665.3,2664.6,0.08245522]
[1723375290642,3.0,2665.3,2664.6,0.1575081]
[1723375290848,3.0,2665.3,2664.6,0.43846144]
[1723375291052,3.0,2665.3,2664.6,0.08245522]
[1723375291237,3.0,2665.3,2664.5,2.3966]
[1723375295231,7.3,2665.8,2664.7,2.3966]
[1723375295232,3.0,2665.6,2664.7,2.3966]
[1723375295438,3.0,2665.7,2664.7,2.3966]
[1723375295759,2.302,2665.6,2664.3,2.3966]
[1723375296414,0.55,2665.5,2664.3,2.3966]
[1723375296637,0.2852,2665.4,2664.3,2.3966]
[1723375296861,2.302,2665.2,2664.3,2.3966]
[1723375297231,5.302,2665.2,2664.3,2.3966]
[1723375299368,0.55,2665.1,2663.7,2.3966]
[1723375299676,0.55,2665.1,2663.8,0.96522955]
[1723375299677,7.3,2664.9,2663.8,0.96522955]
[1723375299875,3.0,2664.8,2663.8,0.15814783]
[1723375300545,3.0,2664.8,2663.8,0.08307708]
[1723375300867,3.0,2664.8,2663.9,2.3966]
[1723375301179,3.0,2664.8,2664.0,0.24796771]
[1723375301479,3.0,2664.8,2664.1,0.08301061]
[1723375301872,2.302,2664.7,2663.3,2.3966]
[1723375302181,2.302,2664.7,2664.2,0.08298111]
[1723375302421,7.3,2664.5,2663.3,2.3966]
[1723375302684,3.55,2664.4,2663.3,2.3966]
[1723375303196,3.55,2664.4,2663.4,0.0832466]
[1723375303685,3.0,2664.4,2663.4,0.15833454]
[1723375303869,3.0,2664.4,2663.4,0.78582799]
[1723375304243,3.0,2664.4,2663.4,0.71074005]
[1723375304447,3.0,2664.4,2663.4,0.0832466]
[1723375307290,2.4228,2664.3,2663.4,0.0832466]
[1723375310708,2.4228,2664.3,2663.0,2.3263]
[1723375310709,0.55,2664.2,2663.0,2.3263]
[1723375310882,0.55,2664.2,2663.1,0.08404481]
[1723375311083,0.29728,2664.1,2663.1,0.32507929]
[1723375311474,0.29728,2664.1,2663.1,0.08404481]
[1723375313301,0.29728,2664.1,2663.2,2.3263]
[1723375320285,10.3,2664.2,2663.3,0.0750899]
[1723375320488,10.3,2664.2,2663.2,2.3263]
[1723375321203,10.3,2664.2,2663.3,0.08409609]
[1723375323805,0.55,2664.1,2663.3,0.08409609]
[1723375324000,0.55,2664.1,2663.2,2.3263]
[1723375324228,1.17422805,2664.0,2663.2,2.3263]
[1723375324430,0.55,2663.9,2662.5,2.3263]
[1723375324606,7.3,2663.7,2662.5,2.3263]
[1723375324799,3.97228,2663.6,2662.7,2.3263]
[1723375325111,3.0,2663.6,2662.8,0.07510107]
[1723375325312,3.0,2663.6,2662.9,2.3263]
[1723375325639,3.0,2664.1,2663.1,2.3263]
[1723375325816,4.03,2664.1,2663.2,0.31522705]
[1723375326140,4.03,2664.1,2663.2,0.24013881]
[1723375326701,7.3,2664.8,2663.3,2.40138669]
[1723375326917,2.81502663,2665.4,2663.5,2.3263]
[1723375327117,2.81502663,2665.4,2663.7,2.3263]
[1723375327324,2.4228,2665.4,2663.8,2.40136171]
[1723375327530,2.4228,2665.4,2663.8,2.48018157]
[1723375327739,2.4228,2665.7,2663.8,2.48018157]
[1723375327913,0.89228054,2665.8,2664.0,2.3263]
[1723375328242,0.89228054,2665.8,2664.2,2.4893]
[1723375328436,0.89228054,2665.8,2664.1,0.07505139]
[1723375328437,0.89228054,2665.8,2664.3,2.56434971]
[1723375328602,0.89228054,2665.8,2664.4,0.07504971]
[1723375328926,0.44767995,2666.2,2664.4,2.4893]
[1723375329236,0.89228054,2666.2,2664.6,2.4893]
[1723375329415,0.89228054,2666.2,2664.8,2.4893]
[1723375329800,1.33996054,2666.2,2664.9,0.07804412]
[1723375330029,1.33996054,2666.2,2665.0,0.07503716]
[1723375330236,2.77659591,2666.5,2665.1,2.4893]
[1723375330438,0.27765959,2666.4,2665.1,2.4893]
[1723375330739,0.27765959,2666.4,2665.2,0.07794465]
[1723375331112,0.72533954,2666.4,2665.2,0.07794465]
[1723375331843,0.89228054,2666.3,2665.2,0.07794465]
[1723375332149,0.41699401,2666.2,2665.2,0.07794465]
[1723375332502,1.30927455,2666.2,2665.2,0.07794465]
[1723375332618,0.55,2666.1,2665.2,0.07794465]
[1723375333028,1.30927455,2666.2,2665.1,2.4893]
[1723375333226,0.41699401,2666.2,2665.2,0.32396521]
[1723375333556,3.27765959,2666.4,2665.3,2.4893]
[1723375333722,0.27765959,2666.4,2665.3,2.5672115]
[1723375333925,0.44767995,2666.6,2665.4,0.07503071]
[1723375334127,0.44767995,2666.6,2665.5,2.56659511]
[1723375334543,0.55,2666.5,2665.5,2.56659511]
[1723375335653,0.99460059,2666.5,2665.5,0.07729511]
[1723375335862,3.28298054,2666.4,2665.5,0.07729511]
[1723375336019,3.93329805,2666.3,2665.1,2.4893]
[1723375336221,4.82557859,2666.3,2665.6,0.07726196]
[1723375336622,4.380978,2666.3,2665.1,2.4893]
[1723375336835,3.830978,2666.3,2665.1,2.4893]
[1723375337051,0.6221678,2666.2,2665.2,0.24893]
[1723375338851,0.6221678,2666.2,2665.3,2.4893]
[1723375339123,3.6221678,2666.2,2665.3,2.4893]
[1723375339329,0.6221678,2666.2,2665.3,2.4893]
[1723375339651,0.44767995,2666.3,2665.3,2.763123]
[1723375339852,0.44767995,2666.3,2665.3,2.4893]
[1723375341431,3.44460059,2666.6,2665.3,2.4893]
[1723375341634,0.55,2666.5,2665.3,2.4893]
[1723375343741,1.44228054,2666.5,2665.3,2.4893]
[1723375344589,7.3,2666.4,2665.3,2.4893]
[1723375344763,4.42422805,2666.3,2665.3,2.4893]
[1723375346245,3.87422805,2666.3,2665.3,2.4893]
[1723375350685,0.55,2666.2,2665.3,2.4893]
[1723375351055,0.55,2666.2,2665.4,0.07698367]
[1723375353885,2.3009,2666.1,2665.4,0.07698367]
[1723375354100,0.87985799,2666.0,2665.4,0.07698367]
[1723375354258,0.89228054,2665.9,2664.7,2.3208]
[1723375354461,2.3009,2665.8,2664.7,2.3208]
[1723375354660,0.44460059,2665.7,2664.7,2.3208]
[1723375354861,2.3009,2665.6,2664.8,0.07721558]
[1723375355088,1.1668306,2665.5,2664.8,0.07721558]
[1723375355262,0.55,2665.4,2664.3,2.3208]
[1723375355460,2.74550059,2665.3,2664.3,2.3208]
[1723375355698,3.55,2665.2,2664.3,2.3208]
[1723375355903,0.62955006,2665.1,2662.6,2.3208]
[1723375356207,2.3009,2664.9,2662.9,2.3208]
[1723375356700,2.3009,2664.9,2663.0,2.39920682]
[1723375356701,0.55,2664.8,2663.0,2.39920682]
[1723375356907,3.78009,2664.8,2663.0,2.39920682]
[1723375358264,3.78009,2664.8,2663.1,0.07508994]
[1723375358464,3.78009,2664.8,2663.2,2.3208]
[1723375358696,3.0,2664.7,2663.3,0.31466816]
[1723375358967,0.78009,2664.8,2663.4,2.3208]
[1723375359198,0.55,2664.8,2663.6,2.3208]
[1723375359502,3.44767995,2665.1,2663.8,2.3208]
[1723375359503,3.0,2665.1,2663.8,2.3208]
[1723375359814,2.48900915,2665.2,2664.0,2.3208]
[1723375359815,0.54890091,2665.0,2664.0,2.3208]
[1723375360014,0.18810915,2665.2,2664.0,2.3208]
[1723375360306,3.0,2665.4,2664.1,0.07812239]
[1723375360504,3.44767995,2665.4,2664.1,0.07812239]
[1723375360667,0.64677306,2665.3,2664.0,2.3208]
[1723375360866,0.64677306,2665.3,2664.0,2.3618702]
[1723375361480,0.64677306,2665.3,2664.1,0.07812239]
[1723375361885,0.64677306,2665.3,2664.1,0.11919259]
[1723375362217,0.4094453,2665.2,2664.1,0.11919259]
[1723375363428,1.30172584,2665.2,2664.1,0.11919259]
[1723375363621,0.89228054,2665.2,2664.2,2.3208]
[1723375363927,2.3009,2665.9,2664.4,2.3208]
[1723375363928,0.89228054,2665.8,2664.4,2.3208]
[1723375364215,0.89228054,2665.8,2664.5,0.07798969]
[1723375364216,0.38547095,2665.7,2664.5,0.07798969]
[1723375364414,0.44460059,2665.6,2664.5,0.07798969]
[1723375364577,0.89228054,2665.6,2664.4,2.3208]
[1723375365104,0.55,2665.5,2664.4,2.3208]
[1723375366013,3.38327995,2665.5,2664.4,2.3208]
[1723375366191,3.338328,2665.4,2664.4,2.3208]
[1723375366526,0.55,2665.3,2664.4,2.3208]
[1723375367335,0.55,2665.3,2664.3,0.0410702]
[1723375367336,1.44228054,2665.3,2664.3,0.0410702]
[1723375367627,1.44228054,2665.3,2664.4,0.07790548]
[1723375367787,0.9257408,2665.2,2664.4,0.07790548]
[1723375368121,0.55,2665.1,2664.4,0.07790548]
[1723375371819,0.47806085,2665.2,2664.4,0.07790548]
[1723375372999,0.47806085,2665.2,2664.5,2.4042]
[1723375373182,0.47806085,2665.2,2664.6,0.07793816]
[1723375373724,3.338328,2665.4,2664.6,0.07793816]
[1723375373927,0.55,2665.3,2664.6,0.07793816]
[1723375374239,3.55,2665.3,2664.6,0.07793816]
[1723375374611,0.55,2665.3,2664.5,2.4042]
[1723375374917,0.55,2665.3,2664.7,0.07785732]
[1723375375116,0.55,2665.3,2664.5,2.4042]
[1723375375117,0.55,2665.3,2664.6,0.07789049]
[1723375375318,0.55,2665.3,2664.8,0.07782416]
[1723375375522,0.55,2665.3,2664.7,0.07785732]
[1723375375693,0.55,2665.3,2664.9,0.077791]
[1723375375893,0.55,2665.3,2664.5,2.4042]
[1723375376111,0.55,2665.3,2665.0,0.07775784]
[1723375376323,0.338328,2665.4,2664.5,2.4042]
[1723375376498,0.338328,2665.4,2664.6,0.24042]
[1723375379440,0.338328,2665.4,2664.5,2.4042]
[1723375380142,2.9356,2665.3,2664.3,0.0410702]
[1723375380301,10.68327995,2665.3,2664.3,0.0410702]
[1723375380501,3.0,2665.2,2664.3,0.0410702]
[1723375380741,2.00134123,2665.1,2664.3,0.0410702]
[1723375381041,2.83327995,2665.0,2664.3,0.0410702]
[1723375381202,0.89228054,2665.0,2664.3,0.0410702]
[1723375381417,2.9356,2664.9,2664.3,0.0410702]
[1723375381617,3.0,2664.8,2664.3,0.0410702]
[1723375381855,1.14356,2664.7,2664.3,0.0410702]
[1723375382622,2.3856,2664.6,2664.3,0.0410702]
[1723375382937,0.55,2664.5,2663.1,2.4042]
[1723375383270,3.55,2664.5,2663.1,2.4042]
[1723375383418,0.89356,2664.4,2663.1,2.4042]
[1723375383625,0.55,2664.3,2663.1,2.4042]
[1723375384567,0.89356,2664.4,2663.3,2.4042]
[1723375384863,0.89356,2664.4,2663.4,0.07602091]
[1723375386247,8.19356,2664.4,2663.4,0.07602091]
[1723375386424,4.669356,2664.3,2663.4,0.07602091]
[1723375386625,4.669356,2664.3,2663.3,2.4042]
[1723375386930,4.669356,2664.3,2662.3,0.08395564]
[1723375386931,2.3953,2664.2,2662.5,2.3461]
[1723375387268,2.3953,2664.0,2662.6,0.07628657]
[1723375387479,2.3953,2664.0,2662.5,2.3461]
[1723375387622,0.55,2663.9,2662.5,2.3461]
[1723375388263,3.55,2663.9,2662.5,2.3461]
[1723375390552,2.3953,2663.8,2662.5,2.3461]
[1723375390751,0.59453,2663.7,2662.5,2.58910556]
[1723375390996,0.59453,2663.7,2662.6,0.07643704]
[1723375391287,3.59453,2663.7,2662.6,0.07643704]
[1723375391590,2.9453,2663.6,2662.6,0.07643704]
[1723375391792,3.653983,2663.5,2662.6,0.07643704]
[1723375391990,3.653983,2663.5,2662.7,0.07698349]
[1723375391991,0.55,2663.4,2662.7,0.07698349]
[1723375392162,0.55,2663.4,2662.4,2.3461]
[1723375392360,0.4203983,2663.3,2662.4,2.3461]
[1723375392594,0.4203983,2663.3,2662.5,0.07704993]
[1723375395499,3.4203983,2663.3,2662.4,2.3461]
[1723375396692,2.3953,2663.2,2662.3,0.08395564]
[1723375396854,7.07233983,2663.2,2662.3,0.08395564]
[1723375397053,7.07233983,2663.2,2662.4,0.07708315]
[1723375397792,7.07233983,2663.2,2662.3,0.08395564]
[1723375397994,7.07233983,2663.2,2662.4,0.07708315]
[1723375398196,2.3953,2663.0,2662.3,0.08395564]
[1723375398663,5.3953,2663.0,2662.3,0.08395564]
[1723375398855,3.0,2663.0,2662.4,0.07708315]
[1723375399058,2.3953,2663.3,2662.4,0.07708315]
[1723375399494,2.3953,2663.3,2662.3,0.08395564]
[1723375399657,0.53953,2663.2,2662.3,0.08395564]
[1723375399858,3.53953,2663.2,2662.3,0.08395564]
[1723375400054,3.53953,2663.2,2662.4,0.07708315]
[1723375400793,0.55,2663.1,2662.4,0.07708315]
[1723375400991,3.53953,2663.2,2662.4,0.07708315]
[1723375401200,0.593483,2663.1,2662.4,0.07708315]
[1723375401567,0.593483,2663.1,2662.5,2.3461]
[1723375401781,3.0,2663.2,2662.5,2.3461]
[1723375401957,3.0,2663.2,2662.6,0.07445581]
[1723375402295,2.3953,2663.6,2662.6,0.07445581]
[1723375402652,2.3953,2663.6,2662.5,2.3461]
[1723375404387,9.6953,2663.6,2662.6,0.07511233]
[1723375404692,9.6953,2663.6,2662.7,0.07463922]
[1723375405000,7.3,2663.6,2662.8,2.3461]
[1723375405489,7.3,2663.6,2662.6,0.24212123]
[1723375405490,2.3953,2663.5,2662.6,0.24212123]
[1723375405695,3.1253,2663.5,2662.5,2.3461]
[1723375405866,3.1253,2663.5,2662.7,0.07463922]
[1723375406188,3.0,2663.4,2662.6,0.07467244]
[1723375406397,0.61253,2663.3,2662.8,0.07460601]
[1723375406554,0.61253,2663.3,2662.5,2.3461]
[1723375407006,0.61253,2663.3,2662.6,0.07467244]
[1723375408276,2.8838,2663.2,2662.6,0.07467244]
[1723375408482,0.349633,2663.1,2662.6,0.07467244]
[1723375408697,3.349633,2663.1,2662.3,0.08395564]
[1723375408884,0.349633,2663.1,2662.3,0.08395564]
[1723375409069,2.3338,2663.0,2662.3,0.08395564]
[1723375409273,0.55,2662.9,2662.3,0.08395564]
[1723375409495,0.58838,2662.8,2662.3,0.08395564]
[1723375410007,2.3338,2662.7,2662.3,0.08395564]
[1723375410193,2.8838,2662.7,2662.3,0.08395564]
[1723375410701,3.0,2662.6,2662.3,0.08395564]
[1723375411383,2.8838,2662.5,2662.3,0.08395564]
[1723375411594,3.28838,2662.4,2662.3,0.08395564]
[1723375411799,3.83838,2662.4,2662.3,0.08395564]
[1723375411984,6.17218,2662.4,2662.3,0.08395564]
[1723375412180,3.83838,2662.4,2661.6,0.1280467]
[1723375412387,2.3338,2662.2,2661.6,0.1280467]
[1723375412685,2.3338,2662.0,2661.6,0.1280467]
[1723375413127,3.0,2662.1,2661.6,0.1280467]
[1723375413487,3.0,2662.1,2661.7,0.06822863]
[1723375413707,3.0,2662.2,2661.7,0.06822863]
[1723375414022,0.53338,2662.2,2661.7,0.06822863]
[1723375414227,3.0,2662.3,2661.7,0.06822863]
[1723375414524,0.55,2662.2,2661.6,0.1280467]
[1723375414678,0.44460059,2662.2,2661.6,0.1280467]
[1723375414883,0.44460059,2662.2,2661.7,0.06822863]
[1723375414884,3.28326006,2662.1,2661.7,0.06822863]
[1723375415201,3.28326006,2662.1,2661.6,0.1280467]
[1723375415379,2.3338,2661.9,2661.6,0.1280467]
[1723375415723,0.55,2661.8,2661.6,0.1280467]
[1723375415939,0.28838,2661.7,2661.6,0.1280467]
[1723375416225,3.17218,2661.7,2661.6,0.1280467]
[1723375416429,2.8838,2661.7,2660.5,0.11587253]
[1723375416579,3.55,2661.6,2660.5,0.11587253]
[1723375417324,2.3338,2661.5,2660.5,0.11587253]
[1723375417526,2.8838,2661.4,2660.5,0.11587253]
[1723375417680,3.0,2661.3,2660.5,0.11587253]
[1723375417884,2.3338,2661.1,2660.5,0.11587253]
[1723375418220,0.55,2661.0,2660.5,0.11587253]
[1723375418428,3.55,2661.0,2660.5,0.11587253]
[1723375418640,2.9888,2660.9,2660.5,0.11587253]
[1723375418785,15.56134832,2660.8,2660.3,0.005]
[1723375419116,2.3338,2660.6,2660.3,0.005]
[1723375419290,0.55,2660.5,2660.3,0.005]
[1723375419483,0.28838,2660.4,2660.3,0.005]
[1723375419926,3.0,2660.5,2660.3,0.005]
[1723375420127,2.3338,2661.0,2660.3,0.005]
[1723375420333,3.55,2660.8,2660.3,0.005]
[1723375420485,0.655,2660.9,2660.3,0.005]
[1723375420829,2.3338,2661.0,2660.3,0.005]
[1723375422033,0.55,2660.9,2660.3,0.005]
[1723375422485,3.55,2660.9,2660.3,0.005]
[1723375424400,3.54842648,2660.9,2660.3,0.005]
[1723375425298,0.38563335,2660.8,2660.3,0.005]
[1723375425520,0.39340598,2660.7,2660.3,0.005]
[1723375426029,2.2935,2660.5,2659.0,0.37827983]
[1723375426231,5.2935,2660.5,2659.0,0.37827983]
[1723375426386,5.71529725,2660.5,2659.0,0.37827983]
[1723375426609,2.84846428,2660.4,2659.0,0.37827983]
[1723375426855,2.29846428,2660.4,2659.0,0.37827983]
[1723375427329,5.29846428,2660.4,2659.0,0.37827983]
[1723375428956,5.29846428,2660.4,2659.2,2.3056]
[1723375429112,3.62,2660.6,2659.3,0.07519989]
[1723375429452,3.62,2660.6,2659.4,0.07038837]
[1723375429453,2.2935,2660.5,2659.4,0.07038837]
[1723375429812,2.2935,2660.5,2659.0,0.37827983]
[1723375430519,0.55,2660.4,2659.1,2.3056]
[1723375430910,3.55,2660.4,2659.1,2.3056]
[1723375431116,3.55,2660.4,2659.0,0.37827983]
[1723375431117,2.2935,2660.2,2659.0,0.37827983]
[1723375431457,0.55,2660.1,2659.0,0.37827983]
[1723375431609,3.55,2660.1,2659.0,0.37827983]
[1723375432011,3.55,2660.1,2659.1,0.07075251]
[1723375432247,2.2935,2659.6,2659.1,0.07075251]
[1723375432417,0.59135,2659.5,2659.0,0.37827983]
[1723375432620,0.55,2659.4,2659.0,0.37827983]
[1723375433360,3.59135,2659.5,2659.0,0.37827983]
[1723375433651,3.59135,2659.5,2659.1,0.06838251]
[1723375433830,0.59135,2659.5,2659.1,0.06838251]
[1723375434033,0.359135,2659.4,2659.1,0.06838251]
[1723375434357,3.0,2659.9,2659.1,0.06838251]
[1723375434650,3.62,2660.2,2659.0,0.37827983]
[1723375434812,3.0,2660.1,2659.0,0.37827983]
[1723375435008,0.662,2660.0,2659.0,0.37827983]
[1723375435313,0.662,2660.0,2659.1,0.06838251]
[1723375435744,1.04747182,2660.0,2659.1,0.06838251]
[1723375436142,1.04747182,2660.0,2659.0,0.37827983]
[1723375436523,0.55,2659.9,2659.0,0.37827983]
[1723375436921,0.45974718,2659.9,2659.1,0.06838251]
[1723375438644,0.55,2659.8,2659.1,0.06838251]
[1723375438955,2.2935,2659.7,2659.1,0.06838251]
[1723375439159,0.55,2659.6,2659.1,0.06838251]
[1723375439468,0.55,2659.6,2659.0,0.37827983]
[1723375439469,3.55,2659.6,2659.0,0.37827983]
[1723375439650,0.58435,2659.5,2659.0,0.37827983]
[1723375440054,0.55,2659.4,2659.0,0.37827983]
[1723375440760,3.0,2659.4,2659.0,0.37827983]
[1723375440967,0.45974718,2659.9,2659.0,2.68387983]
[1723375441273,0.55,2659.8,2659.0,0.37827983]
[1723375441424,0.99975472,2659.8,2659.0,0.37827983]
[1723375442469,0.44975472,2659.8,2659.0,0.37827983]
[1723375442676,3.44975472,2659.8,2659.0,0.37827983]
[1723375443036,0.44975472,2659.8,2659.0,0.37827983]
[1723375443236,3.0,2659.7,2659.0,0.37827983]
[1723375443473,0.44975472,2659.8,2659.1,2.3056]
[1723375443791,0.45974718,2659.9,2659.1,2.3056]
[1723375445986,2.71194718,2659.9,2659.0,0.37827983]
[1723375446137,3.91520782,2659.8,2659.0,0.37827983]
[1723375446535,0.55,2659.7,2659.0,0.37827983]
[1723375446735,0.4946315,2659.6,2659.0,0.37827983]
[1723375446940,0.55,2659.5,2659.0,0.37827983]
[1723375447151,0.4946315,2659.6,2659.0,0.37827983]
[1723375448081,0.4946315,2659.6,2659.1,2.3288]
[1723375448280,0.45974718,2659.9,2659.1,2.3288]
[1723375448583,0.52962418,2660.2,2659.2,0.06420159]
[1723375448782,1.01073133,2660.2,2659.2,0.06420159]
[1723375448943,1.01073133,2660.2,2659.1,2.3288]
[1723375449149,1.01073133,2660.2,2659.3,0.06416829]
[1723375449397,0.43865313,2660.1,2659.2,0.06420159]
[1723375449558,3.33182418,2660.0,2659.4,0.06413499]
[1723375449886,3.0,2659.9,2659.0,0.37827983]
[1723375450287,3.0,2659.9,2659.1,2.3288]
[1723375450487,1.56073133,2660.0,2659.1,2.3288]
[1723375450488,0.45607313,2659.8,2659.1,2.3288]
[1723375450690,1.56073133,2660.0,2659.2,0.06420159]
[1723375450862,0.52962418,2659.8,2659.2,0.06420159]
[1723375451070,0.55,2659.7,2659.0,0.37827983]
[1723375451264,0.45607313,2659.6,2659.0,0.37827983]
[1723375451464,0.45607313,2659.6,2659.1,0.06423489]
[1723375451465,0.55,2659.5,2659.1,0.06423489]
[1723375452000,0.55,2659.5,2659.0,0.37827983]
[1723375453465,0.45607313,2659.6,2659.0,0.37827983]
[1723375453999,0.45607313,2659.6,2659.0,2.70707983]
[1723375454172,7.3,2660.0,2659.0,2.70707983]
[1723375454373,7.3,2660.0,2659.1,0.06430452]
[1723375454705,7.3,2660.0,2659.0,2.70707983]
[1723375454859,0.78296242,2659.9,2659.0,2.70707983]
[1723375455654,3.78296242,2659.9,2659.0,2.70707983]
[1723375457238,0.78296242,2659.9,2659.2,2.3288]
[1723375457526,2.2522,2660.5,2659.2,2.3288]
[1723375457527,2.2522,2660.5,2659.3,0.06428552]
[1723375458132,2.74787436,2660.5,2659.2,2.3288]
[1723375458282,0.49567436,2660.4,2659.2,2.3288]
[1723375458482,2.2522,2660.2,2659.0,0.37827983]
[1723375458827,2.73330715,2660.2,2659.0,0.37827983]
[1723375459123,0.55,2660.1,2659.1,0.0642532]
[1723375459292,0.32833072,2660.0,2659.1,0.0642532]
[1723375459494,0.55,2659.9,2659.1,0.0642532]
[1723375460945,2.2522,2659.8,2659.1,0.0642532]
[1723375461156,0.55,2659.7,2659.1,0.0642532]
[1723375461449,3.55,2659.7,2659.1,0.0642532]
[1723375461652,0.88022,2659.6,2659.1,0.0642532]
[1723375462449,3.0,2659.9,2659.1,0.0642532]
[1723375462611,0.55,2659.8,2659.1,0.0642532]
[1723375462810,3.55,2659.9,2659.1,0.0642532]
[1723375463347,0.55,2659.9,2659.1,0.0642532]
[1723375463657,2.2522,2659.7,2659.0,0.37827983]
[1723375464192,0.55,2659.6,2659.0,0.37827983]
[1723375464460,0.55,2659.6,2659.1,0.0643448]
[1723375464461,3.55,2659.6,2659.1,0.0643448]
[1723375464621,0.88022,2659.5,2659.1,0.0643448]
[1723375464949,0.28022,2659.8,2659.1,0.0643448]
[1723375465119,0.55,2659.7,2659.1,0.0643448]
[1723375465320,0.55,2659.7,2659.0,0.37827983]
[1723375465647,2.4185,2659.6,2659.0,0.37827983]
[1723375465852,0.84685,2659.5,2659.0,0.37827983]
[1723375466009,0.84685,2659.5,2659.1,0.0643448]
[1723375466206,3.84685,2659.5,2659.1,0.0643448]
[1723375466814,2.4185,2659.4,2659.1,0.0643448]
[1723375467022,0.55,2659.3,2659.0,0.37827983]
[1723375467224,0.326535,2659.3,2659.0,0.37827983]
[1723375467449,2.69872,2659.8,2659.0,0.37827983]
[1723375467654,0.55,2659.2,2659.0,0.37827983]
[1723375467866,3.0,2659.7,2659.0,0.37827983]
[1723375468086,0.55,2659.6,2659.1,0.0645464]
[1723375468289,1.119872,2659.6,2659.1,0.0645464]
[1723375468799,2.4185,2659.5,2659.1,0.0645464]
[1723375468953,0.55,2659.4,2659.1,0.0645464]
[1723375469289,2.4185,2659.3,2659.0,0.37827983]
[1723375469503,0.55,2659.2,2659.0,0.37827983]
[1723375469656,3.55,2659.2,2659.0,0.37827983]
[1723375470251,3.55,2659.2,2656.5,2.3463]
[1723375470252,2.4185,2659.1,2656.5,2.3463]
[1723375470486,2.4185,2659.1,2656.7,2.3463]
[1723375470487,2.4185,2658.8,2656.7,2.3463]
[1723375470854,2.4185,2658.8,2656.7,2.2963]